[Event "*** Titled Tuesday Blitz"]
[Site "Chess.com"]
[Date "2020.12.01"]
[Round "7"]
[White "BAS8892"]
[Black "Mr_Sinigami"]
[Result "0-1"]
[WhiteElo "2707"]
[BlackElo "2575"]
[TimeControl "180+1"]
[EndTime "11:15:40 PST"]
[Termination "Mr_Sinigami won by resignation"]

1. d4 {[%clk 0:03:00]} 1... Nf6 {[%clk 0:02:57.3]} 2. Nf3 {[%clk 0:02:59.6]}
2... g6 {[%clk 0:02:57.1]} 3. e3 {[%clk 0:02:59.4]} 3... Bg7 {[%clk 0:02:56.8]}
4. Bd3 {[%clk 0:02:59.6]} 4... O-O {[%clk 0:02:57]} 5. b3 {[%clk 0:02:59.8]}
5... d6 {[%clk 0:02:50]} 6. Bb2 {[%clk 0:02:59.8]} 6... Nbd7 {[%clk 0:02:48.1]}
7. Nbd2 {[%clk 0:02:59.4]} 7... e5 {[%clk 0:02:43.4]} 8. O-O {[%clk 0:02:58]}
8... Re8 {[%clk 0:02:38]} 9. dxe5 {[%clk 0:02:58]} 9... Ng4 {[%clk 0:02:35.5]}
10. Qc1 {[%clk 0:02:47.6]} 10... Ngxe5 {[%clk 0:02:33.4]} 11. Be2 {[%clk
0:02:47]} 11... Qe7 {[%clk 0:02:27.7]} 12. c4 {[%clk 0:02:43.5]} 12... a5 {[%clk
0:02:15.9]} 13. a3 {[%clk 0:02:42.6]} 13... Nc5 {[%clk 0:02:08.2]} 14. Nxe5
{[%clk 0:02:36]} 14... dxe5 {[%clk 0:02:05.6]} 15. b4 {[%clk 0:02:33.5]} 15...
Na4 {[%clk 0:02:03.2]} 16. e4 {[%clk 0:02:25.1]} 16... axb4 {[%clk 0:01:42.1]}
17. axb4 {[%clk 0:02:24.7]} 17... Qxb4 {[%clk 0:01:42.4]} 18. Ba3 {[%clk
0:02:21.9]} 18... Qc3 {[%clk 0:01:40.9]} 19. Nf3 {[%clk 0:02:02.3]} 19... Bd7
{[%clk 0:01:34.1]} 20. Rb1 {[%clk 0:01:53.9]} 20... Bc6 {[%clk 0:01:29.8]} 21.
Bb4 {[%clk 0:01:39.8]} 21... Qxc1 {[%clk 0:01:27.5]} 22. Rbxc1 {[%clk
0:01:40.1]} 22... Bxe4 {[%clk 0:01:25.7]} 23. c5 {[%clk 0:01:40.5]} 23... Bc6
{[%clk 0:01:22.1]} 24. Rfd1 {[%clk 0:01:38.5]} 24... Rad8 {[%clk 0:01:18.2]} 25.
Bc4 {[%clk 0:01:38.5]} 25... h6 {[%clk 0:01:15.9]} 26. Bb3 {[%clk 0:01:36.7]}
26... Nb2 {[%clk 0:01:13]} 27. Rxd8 {[%clk 0:01:34.9]} 27... Rxd8 {[%clk
0:01:13]} 28. Rb1 {[%clk 0:01:32.6]} 28... Nd3 {[%clk 0:01:10.8]} 29. Ba5 {[%clk
0:01:32.5]} 29... Rd7 {[%clk 0:01:08.4]} 30. h4 {[%clk 0:01:18.3]} 30... Nxc5
{[%clk 0:01:07.1]} 31. Bc4 {[%clk 0:01:18.5]} 31... b6 {[%clk 0:01:04.5]} 32.
Bb4 {[%clk 0:01:18]} 32... Nd3 {[%clk 0:01:04.4]} 33. Ba3 {[%clk 0:01:16.2]}
33... e4 {[%clk 0:01:03.7]} 34. Nd2 {[%clk 0:01:16]} 34... Bd4 {[%clk
0:01:03.5]} 35. Nb3 {[%clk 0:01:14.6]} 35... Bxf2+ {[%clk 0:01:02.1]} 36. Kf1
{[%clk 0:01:15.5]} 36... Bxh4 {[%clk 0:01:01.1]} 37. Ke2 {[%clk 0:01:12.9]}
37... Nf4+ {[%clk 0:00:55.9]} 38. Ke3 {[%clk 0:01:12.6]} 38... Nxg2+ {[%clk
0:00:55.1]} 39. Ke2 {[%clk 0:01:12.1]} 39... e3 {[%clk 0:00:53.9]} 40. Rc1
{[%clk 0:01:09.8]} 40... Bf2 {[%clk 0:00:41.3]} 41. Bxf7+ {[%clk 0:01:06.5]}
41... Kxf7 {[%clk 0:00:40.6]} 42. Rxc6 {[%clk 0:01:06.8]} 42... Nf4+ {[%clk
0:00:40.2]} 43. Kf3 {[%clk 0:01:07]} 43... Nd3 {[%clk 0:00:34.3]} 44. Ke2 {[%clk
0:00:59.4]} 44... h5 {[%clk 0:00:32]} 45. Rc4 {[%clk 0:00:53.2]} 45... c5 {[%clk
0:00:30.6]} 46. Ra4 {[%clk 0:00:49.3]} 46... h4 {[%clk 0:00:29.8]} 47. Ra6
{[%clk 0:00:48]} 47... h3 {[%clk 0:00:29]} 48. Ra7 {[%clk 0:00:47.5]} 48... Rxa7
{[%clk 0:00:28.1]} 0-1

[Event "*** Titled Tuesday Blitz"]
[Site "Chess.com"]
[Date "2020.12.01"]
[Round "7"]
[White "Enriquack"]
[Black "djano"]
[Result "0-1"]
[WhiteElo "2290"]
[BlackElo "2459"]
[TimeControl "180+1"]
[EndTime "11:15:44 PST"]
[Termination "djano won by resignation"]

1. e4 {[%clk 0:03:00.9]} 1... c5 {[%clk 0:02:59.5]} 2. Nf3 {[%clk 0:03:00.7]}
2... e6 {[%clk 0:03:00]} 3. d4 {[%clk 0:03:00.5]} 3... cxd4 {[%clk 0:03:00.9]}
4. Nxd4 {[%clk 0:03:01.4]} 4... a6 {[%clk 0:03:01.4]} 5. c4 {[%clk 0:03:00.7]}
5... Qh4 {[%clk 0:03:01.3]} 6. Qd3 {[%clk 0:02:50.3]} 6... Nc6 {[%clk
0:02:55.3]} 7. Nxc6 {[%clk 0:02:47.4]} 7... bxc6 {[%clk 0:02:54.1]} 8. g3 {[%clk
0:02:41.7]} 8... Qf6 {[%clk 0:02:46.2]} 9. Bg2 {[%clk 0:02:38.9]} 9... Bc5
{[%clk 0:02:43.2]} 10. O-O {[%clk 0:02:30.7]} 10... h5 {[%clk 0:02:40.8]} 11. h4
{[%clk 0:02:23.8]} 11... Ne7 {[%clk 0:02:40.1]} 12. Nc3 {[%clk 0:02:18.7]} 12...
Ng6 {[%clk 0:02:33.6]} 13. Be3 {[%clk 0:02:13.3]} 13... Ne5 {[%clk 0:02:25.7]}
14. Qe2 {[%clk 0:02:12.3]} 14... Bxe3 {[%clk 0:02:22.5]} 15. Qxe3 {[%clk
0:02:03.4]} 15... Nxc4 {[%clk 0:02:17.5]} 16. Qc5 {[%clk 0:02:00.4]} 16... Nxb2
{[%clk 0:01:54.3]} 17. e5 {[%clk 0:01:33.6]} 17... Qe7 {[%clk 0:01:34.5]} 18.
Qd4 {[%clk 0:01:32.5]} 18... Rb8 {[%clk 0:01:16]} 19. Ne4 {[%clk 0:01:29.6]}
19... Qb4 {[%clk 0:00:56]} 20. Nd6+ {[%clk 0:01:18.1]} 20... Ke7 {[%clk
0:00:54]} 21. Qe3 {[%clk 0:01:14.8]} 21... f6 {[%clk 0:00:40.2]} 22. Rab1 {[%clk
0:00:59.1]} 22... a5 {[%clk 0:00:35.4]} 23. Rfe1 {[%clk 0:00:40.1]} 23... Ba6
{[%clk 0:00:34.7]} 24. Rxb2 {[%clk 0:00:26.4]} 24... Qxb2 {[%clk 0:00:32.9]} 25.
Qc5 {[%clk 0:00:26.9]} 25... Qb4 {[%clk 0:00:30.3]} 26. exf6+ {[%clk 0:00:18.2]}
26... gxf6 {[%clk 0:00:28.1]} 27. Nf5+ {[%clk 0:00:03.1]} 27... Kf7 {[%clk
0:00:28.4]} 28. Qa7 {[%clk 0:00:03.2]} 28... Qxe1+ {[%clk 0:00:27.3]} 29. Kh2
{[%clk 0:00:03.1]} 29... exf5 {[%clk 0:00:24.6]} 30. Qxd7+ {[%clk 0:00:02.8]}
30... Qe7 {[%clk 0:00:23.7]} 31. Qxf5 {[%clk 0:00:02.9]} 31... Bc4 {[%clk
0:00:20.6]} 0-1

[Event "*** Titled Tuesday Blitz"]
[Site "Chess.com"]
[Date "2020.12.01"]
[Round "7"]
[White "Sacbutt"]
[Black "scoopbh"]
[Result "0-1"]
[WhiteElo "2251"]
[BlackElo "2091"]
[TimeControl "180+1"]
[EndTime "11:15:44 PST"]
[Termination "scoopbh won by checkmate"]

1. d4 {[%clk 0:03:00.9]} 1... Nf6 {[%clk 0:02:57.1]} 2. c4 {[%clk 0:03:00.6]}
2... g6 {[%clk 0:02:57.2]} 3. Nc3 {[%clk 0:02:59.5]} 3... d5 {[%clk 0:02:56.1]}
4. cxd5 {[%clk 0:03:00.4]} 4... Nxd5 {[%clk 0:02:55.5]} 5. e4 {[%clk 0:03:01.1]}
5... Nxc3 {[%clk 0:02:55.1]} 6. bxc3 {[%clk 0:03:02]} 6... Bg7 {[%clk
0:02:54.4]} 7. Nf3 {[%clk 0:03:02.6]} 7... c5 {[%clk 0:02:42.6]} 8. Rb1 {[%clk
0:03:02.5]} 8... O-O {[%clk 0:02:30.3]} 9. Be2 {[%clk 0:03:03]} 9... Qa5 {[%clk
0:02:24.9]} 10. d5 {[%clk 0:02:47.7]} 10... Bxc3+ {[%clk 0:02:14.1]} 11. Kf1
{[%clk 0:02:38.2]} 11... Bg7 {[%clk 0:02:08]} 12. h4 {[%clk 0:02:33.6]} 12... h5
{[%clk 0:02:07.3]} 13. Bb2 {[%clk 0:02:17.7]} 13... Na6 {[%clk 0:01:57]} 14.
Bxg7 {[%clk 0:02:16.6]} 14... Kxg7 {[%clk 0:01:57.9]} 15. Ng5 {[%clk 0:02:09]}
15... Nb4 {[%clk 0:01:52.5]} 16. g4 {[%clk 0:02:02.3]} 16... f6 {[%clk
0:01:24.8]} 17. Ne6+ {[%clk 0:01:53.6]} 17... Bxe6 {[%clk 0:01:24.7]} 18. dxe6
{[%clk 0:01:54.5]} 18... Rad8 {[%clk 0:01:06.1]} 19. Qe1 {[%clk 0:01:44.2]}
19... Qxa2 {[%clk 0:00:49.1]} 20. gxh5 {[%clk 0:01:36.7]} 20... g5 {[%clk
0:00:43.6]} 21. hxg5 {[%clk 0:01:29.1]} 21... fxg5 {[%clk 0:00:43.8]} 22. h6+
{[%clk 0:01:17.3]} 22... Kh7 {[%clk 0:00:41.5]} 23. Ra1 {[%clk 0:01:14]} 23...
Qxe6 {[%clk 0:00:38]} 24. Rxa7 {[%clk 0:01:07.9]} 24... Qf6 {[%clk 0:00:30.4]}
25. e5 {[%clk 0:00:54.8]} 25... Qf4 {[%clk 0:00:24.5]} 26. f3 {[%clk 0:00:20.5]}
26... Nc2 {[%clk 0:00:19.7]} 27. Qc3 {[%clk 0:00:16.9]} 27... Ne3+ {[%clk
0:00:16.6]} 28. Kf2 {[%clk 0:00:17]} 28... Ng4+ {[%clk 0:00:16]} 29. Kg2 {[%clk
0:00:17.4]} 29... Ne3+ {[%clk 0:00:12.9]} 30. Kf2 {[%clk 0:00:17.2]} 30... Ng4+
{[%clk 0:00:12.8]} 31. Ke1 {[%clk 0:00:17]} 31... Ne3 {[%clk 0:00:09]} 32. Rxb7
{[%clk 0:00:16.4]} 32... Qg3# {[%clk 0:00:08.7]} 0-1

[Event "*** Titled Tuesday Blitz"]
[Site "Chess.com"]
[Date "2020.12.01"]
[Round "7"]
[White "wonderfultime"]
[Black "Ginger_GM"]
[Result "1-0"]
[WhiteElo "2926"]
[BlackElo "2618"]
[TimeControl "180+1"]
[EndTime "11:15:45 PST"]
[Termination "wonderfultime won by resignation"]

1. e4 {[%clk 0:03:00.9]} 1... c5 {[%clk 0:02:57.1]} 2. Nf3 {[%clk 0:03:01.2]}
2... d6 {[%clk 0:02:57.3]} 3. Bb5+ {[%clk 0:03:01.5]} 3... Nc6 {[%clk
0:02:57.3]} 4. O-O {[%clk 0:03:00]} 4... Bg4 {[%clk 0:02:57.2]} 5. h3 {[%clk
0:02:59.8]} 5... Bh5 {[%clk 0:02:56.7]} 6. c3 {[%clk 0:02:57.8]} 6... Nf6 {[%clk
0:02:54.8]} 7. d3 {[%clk 0:02:54.9]} 7... e6 {[%clk 0:02:52.5]} 8. Nbd2 {[%clk
0:02:55.2]} 8... Be7 {[%clk 0:02:51.4]} 9. Re1 {[%clk 0:02:54]} 9... O-O {[%clk
0:02:50.3]} 10. Bxc6 {[%clk 0:02:54.6]} 10... bxc6 {[%clk 0:02:49.9]} 11. Nf1
{[%clk 0:02:55.5]} 11... Nd7 {[%clk 0:02:47.9]} 12. Ng3 {[%clk 0:02:55.4]} 12...
Bg6 {[%clk 0:02:48]} 13. Be3 {[%clk 0:02:44.7]} 13... a5 {[%clk 0:02:47]} 14. d4
{[%clk 0:02:37.8]} 14... d5 {[%clk 0:02:44.1]} 15. exd5 {[%clk 0:02:02.9]} 15...
cxd5 {[%clk 0:02:43.4]} 16. Bf4 {[%clk 0:02:03.1]} 16... a4 {[%clk 0:02:37.6]}
17. Qd2 {[%clk 0:01:55.7]} 17... Nb6 {[%clk 0:02:34.1]} 18. Ne5 {[%clk 0:01:52]}
18... Nc4 {[%clk 0:02:31.5]} 19. Nxc4 {[%clk 0:01:51.9]} 19... dxc4 {[%clk
0:02:32.4]} 20. Be3 {[%clk 0:01:31.7]} 20... Rb8 {[%clk 0:02:28.6]} 21. Qc1
{[%clk 0:01:19.6]} 21... Qb6 {[%clk 0:02:21.3]} 22. Re2 {[%clk 0:01:19.3]} 22...
cxd4 {[%clk 0:02:19.8]} 23. Bxd4 {[%clk 0:01:19.4]} 23... Bc5 {[%clk 0:02:20.3]}
24. Bxc5 {[%clk 0:01:15.7]} 24... Qxc5 {[%clk 0:02:20.3]} 25. a3 {[%clk
0:01:11.2]} 25... Bd3 {[%clk 0:02:19.4]} 26. Rd2 {[%clk 0:01:11.4]} 26... Rb7
{[%clk 0:02:16.5]} 27. Qd1 {[%clk 0:01:11]} 27... Qc6 {[%clk 0:02:14.3]} 28. Qg4
{[%clk 0:00:47.2]} 28... f5 {[%clk 0:02:09]} 29. Qd4 {[%clk 0:00:43]} 29... Rd7
{[%clk 0:01:58.7]} 30. Qf4 {[%clk 0:00:41.4]} 30... Qd6 {[%clk 0:01:56.6]} 31.
Qh4 {[%clk 0:00:35.6]} 31... e5 {[%clk 0:01:51.9]} 32. Re1 {[%clk 0:00:35]}
32... e4 {[%clk 0:01:51.6]} 33. Nf1 {[%clk 0:00:29.2]} 33... f4 {[%clk
0:01:49.8]} 34. Rxe4 {[%clk 0:00:29.1]} 34... Rdf7 {[%clk 0:01:33.4]} 35. Rxc4
{[%clk 0:00:27]} 35... Qg6 {[%clk 0:01:30]} 36. Rd4 {[%clk 0:00:23.1]} 36... Be4
{[%clk 0:01:25.9]} 37. Qg4 {[%clk 0:00:23.1]} 37... Qc6 {[%clk 0:01:20.4]} 38.
Rd6 {[%clk 0:00:17.1]} 38... Qb7 {[%clk 0:01:18.7]} 39. Rd7 {[%clk 0:00:17.2]}
39... Qc6 {[%clk 0:01:16.7]} 40. Rxf7 {[%clk 0:00:17.4]} 40... Rxf7 {[%clk
0:01:16.4]} 41. Rd8+ {[%clk 0:00:17.5]} 41... Rf8 {[%clk 0:01:17.1]} 42. Rxf8+
{[%clk 0:00:18]} 42... Kxf8 {[%clk 0:01:18]} 43. Qxf4+ {[%clk 0:00:18.9]} 43...
Kg8 {[%clk 0:01:18.2]} 44. Ne3 {[%clk 0:00:19.5]} 44... h6 {[%clk 0:01:18.1]}
45. Qe5 {[%clk 0:00:17.5]} 45... Kh7 {[%clk 0:01:18.1]} 46. Qd4 {[%clk 0:00:18]}
46... Bg6 {[%clk 0:01:18.2]} 47. c4 {[%clk 0:00:17.7]} 47... Qb7 {[%clk
0:01:17.9]} 48. c5 {[%clk 0:00:18.2]} 48... Qb3 {[%clk 0:01:17.8]} 49. h4 {[%clk
0:00:16.3]} 49... Qa2 {[%clk 0:01:16.5]} 50. c6 {[%clk 0:00:12.3]} 50... Qb1+
{[%clk 0:01:16.1]} 51. Kh2 {[%clk 0:00:12.7]} 51... Qc1 {[%clk 0:01:15.3]} 52.
Qc3 {[%clk 0:00:13]} 1-0

[Event "*** Titled Tuesday Blitz"]
[Site "Chess.com"]
[Date "2020.12.01"]
[Round "7"]
[White "RaneshRatnesan"]
[Black "Deepweb2020"]
[Result "1-0"]
[WhiteElo "2150"]
[BlackElo "2270"]
[TimeControl "180+1"]
[EndTime "11:15:47 PST"]
[Termination "RaneshRatnesan won by checkmate"]

1. d4 {[%clk 0:03:00.9]} 1... Nf6 {[%clk 0:02:57.4]} 2. Bf4 {[%clk 0:02:59.2]}
2... e6 {[%clk 0:02:56.7]} 3. e3 {[%clk 0:02:59.3]} 3... c5 {[%clk 0:02:56.9]}
4. c3 {[%clk 0:02:59.1]} 4... d5 {[%clk 0:02:55.9]} 5. Nd2 {[%clk 0:02:59.4]}
5... Bd6 {[%clk 0:02:56.1]} 6. Bg3 {[%clk 0:02:59.3]} 6... Qc7 {[%clk 0:02:56]}
7. Ngf3 {[%clk 0:02:59.1]} 7... Nbd7 {[%clk 0:02:55.4]} 8. Bd3 {[%clk
0:02:58.3]} 8... O-O {[%clk 0:02:53.6]} 9. O-O {[%clk 0:02:49.3]} 9... Bxg3
{[%clk 0:02:53.2]} 10. hxg3 {[%clk 0:02:49.3]} 10... e5 {[%clk 0:02:53.6]} 11.
Nxe5 {[%clk 0:02:45.8]} 11... Nxe5 {[%clk 0:02:54.4]} 12. dxe5 {[%clk
0:02:46.7]} 12... Qxe5 {[%clk 0:02:54.6]} 13. Nf3 {[%clk 0:02:46.6]} 13... Qh5
{[%clk 0:02:46.7]} 14. Be2 {[%clk 0:02:46.1]} 14... Bg4 {[%clk 0:02:45.3]} 15.
Qc2 {[%clk 0:02:35.2]} 15... Rad8 {[%clk 0:02:41.9]} 16. Rad1 {[%clk 0:02:30.5]}
16... Rd6 {[%clk 0:02:41.1]} 17. Rfe1 {[%clk 0:02:25.5]} 17... Ne4 {[%clk
0:02:36.7]} 18. Nh4 {[%clk 0:02:13.5]} 18... g5 {[%clk 0:02:23.6]} 19. Nf5
{[%clk 0:01:56.4]} 19... Rd7 {[%clk 0:01:51.1]} 20. Rxd5 {[%clk 0:01:50.3]}
20... Rxd5 {[%clk 0:01:12.5]} 21. Qxe4 {[%clk 0:01:33.2]} 21... Bxe2 {[%clk
0:00:32.7]} 22. Ne7+ {[%clk 0:01:28.1]} 22... Kg7 {[%clk 0:00:30]} 23. Nxd5
{[%clk 0:01:29]} 23... Bg4 {[%clk 0:00:27.6]} 24. Qe5+ {[%clk 0:01:13.7]} 24...
f6 {[%clk 0:00:26.8]} 25. Qe7+ {[%clk 0:01:10.7]} 25... Qf7 {[%clk 0:00:25]} 26.
Qxc5 {[%clk 0:01:09.8]} 26... Rc8 {[%clk 0:00:23.7]} 27. Qd4 {[%clk 0:00:59.7]}
27... Be6 {[%clk 0:00:20.1]} 28. c4 {[%clk 0:00:59.9]} 28... b5 {[%clk
0:00:17.8]} 29. b3 {[%clk 0:00:59.6]} 29... bxc4 {[%clk 0:00:17.9]} 30. bxc4
{[%clk 0:01:00.5]} 30... h5 {[%clk 0:00:15.1]} 31. Rd1 {[%clk 0:00:58.8]} 31...
Rc6 {[%clk 0:00:11.2]} 32. e4 {[%clk 0:00:57.8]} 32... Kg6 {[%clk 0:00:10.6]}
33. Kh2 {[%clk 0:00:56.3]} 33... h4 {[%clk 0:00:09.9]} 34. gxh4 {[%clk
0:00:55.6]} 34... gxh4 {[%clk 0:00:08]} 35. Kg1 {[%clk 0:00:55.3]} 35... h3
{[%clk 0:00:07.7]} 36. g3 {[%clk 0:00:55.2]} 36... f5 {[%clk 0:00:07.6]} 37.
Nf4+ {[%clk 0:00:55.1]} 37... Kg5 {[%clk 0:00:05]} 38. Nxh3+ {[%clk 0:00:53.9]}
38... Kg4 {[%clk 0:00:05.1]} 39. exf5+ {[%clk 0:00:47.5]} 39... Kxh3 {[%clk
0:00:03.7]} 40. Qh4# {[%clk 0:00:47.2]} 1-0

[Event "*** Titled Tuesday Blitz"]
[Site "Chess.com"]
[Date "2020.12.01"]
[Round "7"]
[White "awesomevishesh"]
[Black "dopolian"]
[Result "1-0"]
[WhiteElo "2549"]
[BlackElo "2425"]
[TimeControl "180+1"]
[EndTime "11:15:48 PST"]
[Termination "awesomevishesh won by checkmate"]

1. e4 {[%clk 0:03:00.9]} 1... Nc6 {[%clk 0:02:58.5]} 2. d4 {[%clk 0:02:59]} 2...
e5 {[%clk 0:02:57.8]} 3. d5 {[%clk 0:02:57.6]} 3... Nce7 {[%clk 0:02:57.8]} 4.
c4 {[%clk 0:02:55.8]} 4... Ng6 {[%clk 0:02:57.7]} 5. Be3 {[%clk 0:02:46.3]} 5...
Nf6 {[%clk 0:02:50.4]} 6. Nc3 {[%clk 0:02:42.1]} 6... Bb4 {[%clk 0:02:49]} 7. f3
{[%clk 0:02:39.5]} 7... Bxc3+ {[%clk 0:02:46.5]} 8. bxc3 {[%clk 0:02:39.2]} 8...
d6 {[%clk 0:02:40.6]} 9. c5 {[%clk 0:02:38.5]} 9... O-O {[%clk 0:02:39.4]} 10.
g3 {[%clk 0:02:29.7]} 10... b6 {[%clk 0:02:38.9]} 11. c6 {[%clk 0:02:17.5]}
11... a5 {[%clk 0:02:36.3]} 12. Bd3 {[%clk 0:02:16]} 12... Ne8 {[%clk
0:02:08.3]} 13. h4 {[%clk 0:02:06.6]} 13... f5 {[%clk 0:02:06.1]} 14. h5 {[%clk
0:02:04.7]} 14... Nh8 {[%clk 0:02:04.8]} 15. Qd2 {[%clk 0:01:57]} 15... fxe4
{[%clk 0:01:59.5]} 16. fxe4 {[%clk 0:01:57]} 16... Bg4 {[%clk 0:01:59]} 17. h6
{[%clk 0:01:42.8]} 17... g6 {[%clk 0:01:50]} 18. Rh4 {[%clk 0:01:38]} 18... Nf6
{[%clk 0:01:31.4]} 19. Bg5 {[%clk 0:01:34.6]} 19... Qc8 {[%clk 0:01:30.9]} 20.
Bxf6 {[%clk 0:01:26.1]} 20... Rxf6 {[%clk 0:01:23.6]} 21. Qg5 {[%clk 0:01:25.5]}
21... Qf8 {[%clk 0:00:57.4]} 22. Qxg4 {[%clk 0:01:24.8]} 22... Nf7 {[%clk
0:00:53.3]} 23. Be2 {[%clk 0:01:19]} 23... Nxh6 {[%clk 0:00:52.5]} 24. Qh3
{[%clk 0:01:18.5]} 24... g5 {[%clk 0:00:48.1]} 25. Rh5 {[%clk 0:01:15.4]} 25...
Rg6 {[%clk 0:00:48.4]} 26. Bg4 {[%clk 0:01:08.7]} 26... Nxg4 {[%clk 0:00:43.7]}
27. Qxg4 {[%clk 0:01:08.2]} 27... Qf6 {[%clk 0:00:35.9]} 28. Nf3 {[%clk
0:01:07.4]} 28... Rf8 {[%clk 0:00:34.8]} 29. Ke2 {[%clk 0:01:07.7]} 29... h6
{[%clk 0:00:32.4]} 30. Rf1 {[%clk 0:01:02.7]} 30... Qg7 {[%clk 0:00:32.3]} 31.
Rhh1 {[%clk 0:00:57.9]} 31... Rgf6 {[%clk 0:00:29.9]} 32. Nd2 {[%clk 0:00:51.4]}
32... Rxf1 {[%clk 0:00:27.9]} 33. Rxf1 {[%clk 0:00:50.9]} 33... Rxf1 {[%clk
0:00:28.1]} 34. Nxf1 {[%clk 0:00:51.5]} 34... Qf7 {[%clk 0:00:19.3]} 35. Ne3
{[%clk 0:00:50.2]} 35... Kf8 {[%clk 0:00:16.3]} 36. Qc8+ {[%clk 0:00:49.4]}
36... Kg7 {[%clk 0:00:16.6]} 37. Nf5+ {[%clk 0:00:49.1]} 37... Kf6 {[%clk
0:00:16.5]} 38. Qd8+ {[%clk 0:00:48.6]} 38... Kg6 {[%clk 0:00:16.3]} 39. Ne7+
{[%clk 0:00:40.6]} 39... Kh5 {[%clk 0:00:15.9]} 40. Qd7 {[%clk 0:00:35.6]} 40...
Qf6 {[%clk 0:00:08.1]} 41. Qh3# {[%clk 0:00:34.2]} 1-0

[Event "*** Titled Tuesday Blitz"]
[Site "Chess.com"]
[Date "2020.12.01"]
[Round "7"]
[White "nitpicker"]
[Black "chesstatour"]
[Result "1-0"]
[WhiteElo "2257"]
[BlackElo "1977"]
[TimeControl "180+1"]
[EndTime "11:15:48 PST"]
[Termination "nitpicker won on time"]

1. d4 {[%clk 0:03:00.9]} 1... e6 {[%clk 0:02:45.9]} 2. c4 {[%clk 0:03:00.1]}
2... b6 {[%clk 0:02:43.4]} 3. a3 {[%clk 0:02:55.5]} 3... Bb7 {[%clk 0:02:43.9]}
4. Nc3 {[%clk 0:02:54.9]} 4... f5 {[%clk 0:02:44.4]} 5. d5 {[%clk 0:02:52]} 5...
e5 {[%clk 0:02:40.9]} 6. e4 {[%clk 0:02:48.1]} 6... fxe4 {[%clk 0:02:36.3]} 7.
Nxe4 {[%clk 0:02:45]} 7... Nf6 {[%clk 0:02:36.7]} 8. Bd3 {[%clk 0:02:35.7]} 8...
Na6 {[%clk 0:02:11.7]} 9. b4 {[%clk 0:02:30.4]} 9... Be7 {[%clk 0:01:42.4]} 10.
Nf3 {[%clk 0:02:24.1]} 10... O-O {[%clk 0:01:38.7]} 11. Qe2 {[%clk 0:02:04.7]}
11... d6 {[%clk 0:01:16.5]} 12. Neg5 {[%clk 0:02:03.3]} 12... Bc8 {[%clk
0:00:57.4]} 13. Bb2 {[%clk 0:01:43.8]} 13... Bg4 {[%clk 0:00:55.5]} 14. c5
{[%clk 0:01:31.9]} 14... dxc5 {[%clk 0:00:40]} 15. Bxa6 {[%clk 0:01:26.5]} 15...
cxb4 {[%clk 0:00:39.4]} 16. O-O {[%clk 0:01:04.6]} 16... bxa3 {[%clk 0:00:31]}
17. Bxa3 {[%clk 0:00:57.9]} 17... Bxa3 {[%clk 0:00:25.1]} 18. Rxa3 {[%clk
0:00:58.2]} 18... Qd6 {[%clk 0:00:24.1]} 19. Re3 {[%clk 0:00:44.3]} 19... Rae8
{[%clk 0:00:21.5]} 20. Rxe5 {[%clk 0:00:31.7]} 20... Rxe5 {[%clk 0:00:14]} 21.
Qxe5 {[%clk 0:00:30.1]} 21... Bxf3 {[%clk 0:00:11.1]} 22. Qxd6 {[%clk
0:00:26.4]} 22... cxd6 {[%clk 0:00:10.2]} 23. Nxf3 {[%clk 0:00:27.1]} 23... Re8
{[%clk 0:00:08.3]} 24. Bb5 {[%clk 0:00:23.6]} 24... Re7 {[%clk 0:00:08]} 25. Ra1
{[%clk 0:00:17.9]} 25... g6 {[%clk 0:00:07.3]} 26. Kf1 {[%clk 0:00:16.8]} 26...
Kg7 {[%clk 0:00:07.3]} 27. Bc6 {[%clk 0:00:16.6]} 27... h6 {[%clk 0:00:05.1]}
28. Nd4 {[%clk 0:00:16.3]} 28... Kf7 {[%clk 0:00:03.9]} 29. Nb5 {[%clk
0:00:16.2]} 29... Ne4 {[%clk 0:00:01.4]} 30. Rxa7 {[%clk 0:00:10.9]} 30... Nd2+
{[%clk 0:00:01.2]} 31. Kg1 {[%clk 0:00:11.2]} 1-0

[Event "*** Titled Tuesday Blitz"]
[Site "Chess.com"]
[Date "2020.12.01"]
[Round "7"]
[White "Alexsur1981"]
[Black "champ2005"]
[Result "0-1"]
[WhiteElo "2826"]
[BlackElo "3017"]
[TimeControl "180+1"]
[EndTime "11:15:51 PST"]
[Termination "champ2005 won on time"]

1. e4 {[%clk 0:01:41]} 1... e5 {[%clk 0:02:59.7]} 2. f4 {[%clk 0:01:38.7]} 2...
d5 {[%clk 0:02:56.7]} 3. exd5 {[%clk 0:01:38.3]} 3... exf4 {[%clk 0:02:57.6]} 4.
Nf3 {[%clk 0:01:35.3]} 4... Nf6 {[%clk 0:02:57.3]} 5. Bc4 {[%clk 0:01:34.5]}
5... Nxd5 {[%clk 0:02:48.7]} 6. O-O {[%clk 0:01:34.1]} 6... Be7 {[%clk
0:02:48.4]} 7. d4 {[%clk 0:01:33.3]} 7... O-O {[%clk 0:02:47.9]} 8. Bxd5 {[%clk
0:01:33]} 8... Qxd5 {[%clk 0:02:48.8]} 9. Bxf4 {[%clk 0:01:33.1]} 9... Qd8
{[%clk 0:02:45.9]} 10. c4 {[%clk 0:01:29.8]} 10... Bg4 {[%clk 0:02:44.2]} 11.
Nc3 {[%clk 0:01:27.9]} 11... Bf6 {[%clk 0:02:36.4]} 12. d5 {[%clk 0:01:24.8]}
12... Bxc3 {[%clk 0:02:33.6]} 13. bxc3 {[%clk 0:01:23.4]} 13... Nd7 {[%clk
0:02:33.8]} 14. Qd4 {[%clk 0:01:23.8]} 14... Bh5 {[%clk 0:02:20.6]} 15. c5
{[%clk 0:01:14.5]} 15... c6 {[%clk 0:02:08.4]} 16. c4 {[%clk 0:01:09.6]} 16...
Rc8 {[%clk 0:01:23.2]} 17. Rae1 {[%clk 0:00:56.1]} 17... cxd5 {[%clk 0:01:18]}
18. Bd6 {[%clk 0:00:53.2]} 18... Re8 {[%clk 0:01:18.2]} 19. cxd5 {[%clk
0:00:52.8]} 19... Qa5 {[%clk 0:01:13.6]} 20. Rxe8+ {[%clk 0:00:46.7]} 20... Rxe8
{[%clk 0:01:14.5]} 21. c6 {[%clk 0:00:47]} 21... bxc6 {[%clk 0:01:10.2]} 22.
dxc6 {[%clk 0:00:47.9]} 22... Nf8 {[%clk 0:01:09.5]} 23. Ne5 {[%clk 0:00:28.3]}
23... Ne6 {[%clk 0:01:05.1]} 24. Qc4 {[%clk 0:00:25.9]} 24... Rc8 {[%clk
0:01:01.5]} 25. g4 {[%clk 0:00:16.8]} 25... Bg6 {[%clk 0:00:58.7]} 26. Nxg6
{[%clk 0:00:16.8]} 26... hxg6 {[%clk 0:00:59.6]} 27. Rc1 {[%clk 0:00:13.7]}
27... Qb6+ {[%clk 0:00:53.8]} 28. Kg2 {[%clk 0:00:12.5]} 28... Nd8 {[%clk
0:00:54.1]} 29. c7 {[%clk 0:00:03.8]} 29... Qxd6 {[%clk 0:00:50.3]} 30. cxd8=Q+
{[%clk 0:00:04.7]} 30... Rxd8 {[%clk 0:00:51.2]} 31. Rc2 {[%clk 0:00:04.3]}
31... Qb6 {[%clk 0:00:42.2]} 32. h3 {[%clk 0:00:03.6]} 32... Rd1 {[%clk
0:00:39.9]} 33. Rf2 {[%clk 0:00:03.6]} 33... Qb7+ {[%clk 0:00:37.4]} 34. Kh2
{[%clk 0:00:04]} 34... Qh1+ {[%clk 0:00:33.6]} 35. Kg3 {[%clk 0:00:04.5]} 35...
Rg1+ {[%clk 0:00:33.3]} 36. Kf4 {[%clk 0:00:03.7]} 36... Qxh3 {[%clk 0:00:31.2]}
0-1